bitfinex/quotes_SOLUSD_20251218
["timestamp","ask_amount","ask_price","bid_price","bid_amount"]
[1766041966315,3.13041792,123.28,123.25,8.81357835]
[1766041966316,0.7,123.28,123.25,8.81357835]
[1766041966610,17.71059543,123.3,123.27,0.7]
[1766041966819,20.14101335,123.3,123.27,0.7]
[1766041967110,20.14101335,123.3,123.26,8.11284445]
[1766041967313,0.7,123.29,123.26,8.81284445]
[1766041968725,3.13041792,123.28,123.25,0.7]
[1766041968896,0.7,123.28,123.25,0.7]
[1766041969419,3.13041792,123.28,123.25,0.7]
[1766041969608,11.24236038,123.28,123.25,0.7]
[1766041970804,11.24236038,123.28,123.25,8.8135897]
[1766041972023,11.24236038,123.28,123.25,0.7]
[1766041972221,0.7,123.27,123.24,8.81360717]
[1766041972704,11.24236038,123.28,123.25,0.7]
[1766041973302,0.7,123.27,123.24,0.7]
[1766041973799,0.7,123.27,123.24,8.81414297]
[1766041974121,0.7,123.29,123.26,0.7]
[1766041974326,8.11058413,123.3,123.27,0.7]
[1766041975108,8.81058413,123.3,123.27,0.7]
[1766041975421,8.81058413,123.3,123.27,8.81214012]
[1766041975605,11.24100205,123.3,123.27,0.7]
[1766041977201,0.7,123.28,123.25,8.81332247]
[1766041977423,4.49762198,123.29,123.26,0.7]
[1766041978627,4.49762198,123.29,123.26,8.81283694]
[1766041978821,0.7,123.29,123.26,8.81283694]
[1766041979020,8.11058413,123.3,123.27,0.7]
[1766041979221,11.90760135,123.31,123.27,0.7]
[1766041979421,12.60760135,123.31,123.27,0.7]
[1766041980332,12.60760135,123.31,123.27,8.81225923]
[1766041980638,12.60760135,123.31,123.27,8.11225923]
[1766041980846,12.60760135,123.31,123.28,0.7]
[1766041981437,8.10997937,123.31,123.28,0.7]
[1766041982100,8.10927067,123.32,123.29,8.1109579]
[1766041982302,11.90554978,123.34,123.3,0.7]
[1766041982526,8.1079278,123.34,123.3,0.7]
[1766041982729,12.60554978,123.34,123.3,0.7]
[1766041982903,12.60483557,123.35,123.3,0.7]
[1766041983105,5.46623292,123.34,123.3,0.7]
[1766041983306,3.79762198,123.34,123.3,0.7]
[1766041983534,0.7,123.33,123.3,0.7]
[1766041983929,3.79762198,123.33,123.28,10.43767296]
[1766041984128,12.69762198,123.36,123.28,10.43767296]
[1766041984129,12.60694311,123.32,123.29,0.7]
[1766041984324,3.79762198,123.31,123.28,11.13767296]
[1766041984525,4.49762198,123.31,123.27,17.71208742]
[1766041985032,4.49762198,123.3,123.27,9.6]
[1766041985336,0.7,123.31,123.25,8.81333269]
[1766041985633,4.49762198,123.28,123.25,0.7]
[1766041985823,3.79762198,123.28,123.25,0.7]
[1766041986221,4.49762198,123.28,123.25,0.7]
[1766041986420,12.60952516,123.28,123.25,0.7]
[1766041987837,3.79762198,123.27,123.24,9.6]
[1766041988031,3.79762198,123.26,123.23,0.7]
[1766041988228,4.49762198,123.26,123.23,0.7]
[1766041988411,12.61075514,123.26,123.23,0.7]
[1766041989218,11.91075514,123.26,123.23,0.7]
[1766041989655,11.91075514,123.26,123.23,8.81480367]
[1766041989949,11.91075514,123.26,123.24,0.7]
[1766041989950,3.79762198,123.26,123.24,0.7]
[1766041990149,11.91060266,123.26,123.24,0.7]
[1766041990531,12.61060266,123.26,123.23,0.7]
[1766041991648,11.91060266,123.26,123.23,0.7]
[1766041991854,8.11298068,123.26,123.23,8.82481936]
[1766041992055,11.91060266,123.26,123.23,8.82481936]
[1766041992858,11.91060266,123.26,123.23,0.66]
[1766041993550,8.11298068,123.26,123.23,0.66]
[1766041993737,8.80254261,123.27,123.23,0.66]
[1766041993940,3.79762198,123.26,123.23,0.66]
[1766041994143,8.80254261,123.27,123.23,0.66]
[1766041994144,12.60016459,123.27,123.23,0.66]
[1766041994464,3.79762198,123.27,123.23,0.66]
[1766041994963,0.69,123.27,123.24,8.77424862]
[1766041995127,12.59998806,123.27,123.24,8.77424862]
[1766041995331,23.0371498,123.28,123.25,0.66]
[1766041995742,4.48762198,123.27,123.24,8.77424862]
[1766041996251,4.48762198,123.26,123.22,0.66]
[1766041996629,4.48762198,123.26,123.22,8.77522064]
[1766041996959,12.6008217,123.26,123.22,8.77522064]
[1766041997128,12.6008217,123.26,123.23,0.66]
[1766041997658,12.6008217,123.26,123.22,8.11522064]
[1766041997659,4.48762198,123.25,123.22,8.77522064]
[1766041997838,3.79762198,123.25,123.22,0.66]
[1766041998360,8.80319972,123.26,123.22,0.66]
[1766041998663,3.79762198,123.25,123.22,8.77553639]
[1766041999355,8.80319972,123.26,123.22,8.77553639]
[1766041999356,8.80258351,123.27,123.23,0.66]
[1766041999538,3.79762198,123.26,123.23,0.66]
[1766041999857,4.48762198,123.26,123.23,0.66]
[1766042000956,12.60057403,123.26,123.23,0.66]
[1766042002056,8.80295205,123.26,123.23,0.66]
[1766042002262,12.60057403,123.26,123.23,0.66]
[1766042003255,12.60057403,123.26,123.22,7.80553639]
[1766042003957,4.48762198,123.25,123.22,7.80553639]
[1766042005354,4.48762198,123.25,123.22,8.46553639]
[1766042005752,0.69,123.24,123.21,17.01591786]
[1766042005958,3.79762198,123.23,123.18,0.66]
[1766042006152,4.48762198,123.22,123.19,8.1171746]
[1766042006475,3.79762198,123.21,123.19,0.66]
[1766042006644,3.79762198,123.21,123.17,8.77855253]
[1766042006645,4.48762198,123.2,123.17,8.77855253]
[1766042007152,0.69,123.19,123.17,0.66]
[1766042007345,4.48762198,123.19,123.17,0.66]
[1766042007659,3.79762198,123.19,123.17,8.77884594]
[1766042008439,4.48762198,123.19,123.16,8.7793254]
[1766042008844,3.79762198,123.19,123.17,0.66]
[1766042009343,4.48762198,123.19,123.16,8.7793254]
[1766042009642,3.79762198,123.17,123.15,0.66]
[1766042010144,4.48762198,123.18,123.15,0.66]
[1766042010543,4.48762198,123.18,123.15,8.78017668]
[1766042010952,3.79762198,123.18,123.16,0.66]
[1766042011639,4.48762198,123.19,123.16,0.66]
[1766042011857,21.50480972,123.2,123.16,0.66]
[1766042012067,3.79762198,123.19,123.16,0.66]
[1766042012565,4.48762198,123.19,123.16,8.77933357]
[1766042013166,13.38762198,123.2,123.17,0.66]
[1766042014663,12.69762198,123.2,123.17,8.11884936]
[1766042014870,13.38762198,123.2,123.17,8.77884936]
[1766042015168,13.39314346,123.2,123.17,8.77884936]
[1766042015861,21.51005823,123.2,123.17,8.77884936]
[1766042016060,3.80314346,123.19,123.17,0.66]
[1766042016763,4.49314346,123.18,123.15,0.66]
[1766042016942,3.80314346,123.17,123.15,0.66]
[1766042017147,4.49314346,123.17,123.14,8.98048442]
[1766042017450,3.80314346,123.17,123.15,0.66]
[1766042017669,4.49314346,123.17,123.14,8.98048442]
[1766042018578,4.49314346,123.17,123.14,0.86]
[1766042018753,12.61206654,123.17,123.14,0.86]
[1766042018947,4.49314346,123.17,123.14,0.86]
[1766042019369,12.61217697,123.17,123.14,0.86]
[1766042019874,8.80903351,123.17,123.14,0.2]
[1766042020061,8.80903351,123.17,123.14,0.86]
[1766042020248,11.92217697,123.17,123.15,0.66]
[1766042020970,12.61217697,123.17,123.14,0.86]
[1766042021177,21.51217697,123.17,123.14,0.86]
[1766042021472,4.49314346,123.16,123.14,0.2]
[1766042021671,0.69,123.15,123.14,0.2]
[1766042021851,4.49314346,123.15,123.14,0.2]
[1766042022058,4.49314346,123.15,123.12,0.88]
[1766042022868,4.49314346,123.15,123.13,0.68]
[1766042023077,4.49314346,123.15,123.12,9.00210618]
[1766042023773,4.47314346,123.14,123.12,0.2]
[1766042023975,3.80314346,123.14,123.12,0.2]
[1766042024480,4.47314346,123.14,123.12,0.2]
[1766042025359,12.59418765,123.14,123.12,0.2]
[1766042025862,0.67,123.13,123.12,0.2]
[1766042026375,21.49418765,123.14,123.12,0.2]
[1766042026574,20.82418765,123.14,123.12,0.2]
[1766042026765,0.67,123.13,123.12,0.2]
[1766042028980,21.49418765,123.14,123.12,0.2]
[1766042029478,0.67,123.13,123.12,0.2]
[1766042037278,0.67,123.16,123.13,0.68]
[1766042037482,12.00545144,123.16,123.13,0.68]
[1766042037782,0.67,123.15,123.13,8.80144925]
[1766042038361,20.1249961,123.16,123.13,8.80144925]
[1766042041382,20.12454579,123.17,123.14,0.68]
[1766042042375,0.67,123.16,123.13,8.80144925]
[1766042042686,3.10545144,123.16,123.13,0.68]
[1766042042881,0.67,123.15,123.13,0.68]
[1766042043085,0.67,123.15,123.12,9.00184843]
[1766042043283,2.43545144,123.16,123.13,0.68]
[1766042043482,3.10545144,123.16,123.13,0.68]
[1766042044064,2.43545144,123.16,123.12,8.32184843]
[1766042044285,3.10545144,123.15,123.12,0.88]
[1766042044480,11.22591756,123.15,123.12,0.88]
[1766042046387,8.11977779,123.16,123.13,0.68]
[1766042046690,11.22522923,123.16,123.13,0.68]
[1766042047594,0.67,123.15,123.13,0.68]
[1766042048071,0.67,123.15,123.12,9.00213892]
[1766042048390,0.67,123.15,123.13,0.68]
[1766042048989,3.10545144,123.15,123.13,0.68]
[1766042049181,0.71,123.14,123.12,0.92]
[1766042049691,10.55582379,123.15,123.12,0.92]
[1766042049992,11.26582379,123.15,123.12,0.92]
[1766042051308,0.71,123.14,123.12,0.2]
[1766042051672,0.71,123.14,123.12,0.92]
[1766042051972,11.26582379,123.15,123.12,0.92]
[1766042052282,10.55582379,123.15,123.13,0.71]
[1766042052689,8.83037235,123.15,123.12,0.91]
[1766042052891,11.26582379,123.15,123.12,0.91]
[1766042053270,8.12037235,123.15,123.13,0.71]
[1766042053993,8.83037235,123.15,123.13,0.71]
[1766042054386,0.71,123.15,123.13,0.71]
[1766042056496,0.21,123.15,123.13,0.71]
[1766042056675,19.45508341,123.16,123.13,0.71]
[1766042056881,2.43545144,123.15,123.13,0.71]
[1766042057605,17.01963197,123.16,123.13,0.71]
[1766042057782,19.45508341,123.16,123.13,8.83141663]
[1766042057983,19.45508341,123.16,123.13,8.12141663]
[1766042058382,19.45508341,123.16,123.13,8.83141663]
[1766042058600,20.16508341,123.16,123.13,8.83141663]
[1766042060592,20.16508341,123.16,123.13,0.71]
[1766042067601,2.43545144,123.15,123.13,0.71]
[1766042067804,3.14545144,123.15,123.12,9.03181205]
[1766042068197,3.14545144,123.15,123.12,8.32181205]
[1766042068411,3.14545144,123.15,123.13,0.71]
[1766042069702,3.14545144,123.15,123.12,9.03181205]
[1766042070100,3.14545144,123.15,123.12,8.32181205]
[1766042070304,3.14545144,123.15,123.13,0.71]
[1766042072607,0.71,123.15,123.13,0.71]
[1766042072806,3.14545144,123.15,123.13,0.71]
[1766042073114,20.16508341,123.16,123.13,0.71]
[1766042073314,19.45508341,123.16,123.13,0.71]
[1766042073517,20.16508341,123.16,123.13,0.71]
[1766042076010,12.8731244,123.18,123.14,0.71]
[1766042076215,17.01783065,123.19,123.14,0.71]
[1766042076392,5.48406708,123.18,123.15,0.71]
[1766042076917,6.19406708,123.18,123.15,0.71]
[1766042077304,14.31238153,123.18,123.15,0.71]
[1766042077490,8.82831445,123.18,123.15,0.71]
[1766042077900,8.11831445,123.18,123.15,0.71]
[1766042078087,9.61,123.19,123.16,0.71]
[1766042078302,12.04545144,123.19,123.16,0.71]
[1766042078513,18.55479911,123.2,123.16,0.71]
[1766042078514,20.99003601,123.2,123.16,0.71]
[1766042078698,9.61,123.2,123.16,0.71]
[1766042078897,12.04545144,123.2,123.16,0.71]
[1766042079104,3.14545144,123.19,123.16,0.71]
[1766042079504,11.26314066,123.19,123.16,0.71]
[1766042079993,3.14545144,123.18,123.14,8.9]
[1766042080199,3.14545144,123.17,123.14,9.61]
[1766042080404,3.14545144,123.17,123.15,0.71]
[1766042081816,3.14545144,123.17,123.14,8.83049561]
[1766042082016,3.14545144,123.17,123.15,0.69]
[1766042082220,17.72826744,123.18,123.15,0.69]
[1766042082521,2.43496758,123.17,123.15,0.69]
[1766042082924,20.16323502,123.18,123.15,0.69]
[1766042085500,19.45323502,123.18,123.15,0.69]
[1766042085721,0.71,123.17,123.15,0.69]
[1766042085906,10.55396316,123.17,123.14,0.69]
[1766042086107,0.71,123.15,123.13,8.12125268]
[1766042086424,0.71,123.15,123.13,8.81125268]
[1766042087021,3.14496758,123.17,123.14,8.81076009]
[1766042089124,0.71,123.17,123.14,8.81076009]
[1766042090421,17.72852102,123.18,123.15,0.69]
[1766042090623,20.1634886,123.18,123.15,0.69]
[1766042091025,8.9,123.18,123.15,0.69]
[1766042091404,0.71,123.19,123.15,0.69]
[1766042091598,29.88970393,123.2,123.15,0.69]
[1766042091599,30.59970393,123.2,123.15,0.69]
[1766042092320,30.59970393,123.2,123.17,0.69]
[1766042092521,2.43496758,123.19,123.17,0.69]
[1766042093723,3.14496758,123.19,123.16,8.11951932]
[1766042094030,3.14496758,123.19,123.16,8.80951932]
[1766042094604,3.14496758,123.19,123.17,0.69]
[1766042095036,3.14496758,123.19,123.16,8.80951932]
[1766042096626,2.43496758,123.19,123.17,0.69]
[1766042096830,30.59970393,123.2,123.17,0.69]
[1766042097030,28.16473635,123.2,123.17,0.69]
[1766042097211,30.59970393,123.2,123.17,0.69]
[1766042097831,12.04496758,123.2,123.17,0.69]
[1766042098031,8.9,123.2,123.17,0.69]
[1766042098730,8.9,123.2,123.18,8.808201]
[1766042099313,8.9,123.2,123.19,0.69]
[1766042099537,4.51210282,123.21,123.19,0.69]
[1766042099708,4.51210282,123.21,123.18,8.808201]
[1766042099913,0.71,123.21,123.18,8.808201]
[1766042100114,4.51210282,123.21,123.18,8.118201]
[1766042100427,4.51210282,123.21,123.18,8.808201]
[1766042101034,0.71,123.19,123.17,8.80874669]
[1766042101331,0.71,123.18,123.17,8.11874669]
[1766042101508,4.51210282,123.19,123.17,8.11874669]
[1766042101710,0.71,123.19,123.17,8.80874669]
[1766042102942,4.51210282,123.2,123.17,8.80874669]
[1766042103435,4.51210282,123.21,123.18,0.69]
[1766042103638,0.71,123.21,123.18,0.69]
[1766042103840,4.51210282,123.24,123.18,0.69]
[1766042104135,13.41210282,123.24,123.2,0.69]
[1766042104340,0.71,123.24,123.2,0.69]
[1766042104537,8.9,123.24,123.2,0.69]
[1766042104911,8.9,123.24,123.22,0.69]
[1766042105928,9.61,123.24,123.21,8.80622433]
[1766042106129,9.61,123.24,123.22,0.69]
[1766042106523,9.61,123.24,123.21,8.11622433]
[1766042106718,9.61,123.24,123.22,0.69]
[1766042107119,9.61,123.24,123.22,8.80544309]
[1766042107319,8.9,123.24,123.23,0.69]
[1766042107521,8.9,123.26,123.23,0.69]
[1766042108846,9.6,123.26,123.23,8.82427478]
[1766042109027,0.7,123.25,123.22,8.11528146]
[1766042109339,0.7,123.25,123.23,0.71]
[1766042109532,0.7,123.25,123.23,8.8248412]
[1766042109710,0.7,123.24,123.21,0.71]
[1766042109909,3.80210282,123.24,123.21,8.11604063]
[1766042110138,0.7,123.23,123.21,8.11604063]
[1766042110834,4.50210282,123.24,123.21,8.82604063]
[1766042111240,3.80210282,123.24,123.21,8.82604063]
[1766042111537,0.7,123.23,123.21,8.82604063]
[1766042111934,3.80210282,123.24,123.21,8.82604063]
[1766042112141,0.7,123.24,123.21,8.82604063]
[1766042113629,4.50210282,123.24,123.21,8.82604063]
[1766042116242,0.7,123.24,123.21,8.82604063]
[1766042116428,4.50210282,123.24,123.21,8.82604063]
[1766042116744,0.7,123.24,123.21,8.82604063]
[1766042117745,4.50210282,123.24,123.21,8.82604063]
[1766042120140,0.7,123.24,123.22,0.71]
[1766042120443,4.50210282,123.25,123.22,0.71]
[1766042120974,0.7,123.26,123.23,8.82490708]
[1766042121141,0.7,123.26,123.24,0.71]
[1766042121447,9.7,123.27,123.24,0.71]
[1766042121631,9.7,123.27,123.23,28.40217479]
[1766042121632,4.50210282,123.26,123.23,8.82490708]
[1766042123945,20.9144421,123.27,123.24,0.71]
[1766042124127,0.7,123.26,123.24,0.71]
[1766042124721,0.7,123.26,123.24,8.82422881]
[1766042125143,9.0,123.27,123.25,0.71]
[1766042125330,9.7,123.27,123.24,8.82422881]
[1766042125737,0.7,123.26,123.24,8.82422881]
[1766042126120,12.80210282,123.27,123.25,0.71]
[1766042126121,9.0,123.27,123.25,0.71]
[1766042128350,9.7,123.27,123.25,0.71]
[1766042129150,9.7,123.27,123.24,8.82422881]
[1766042129539,0.7,123.26,123.24,8.82422881]
[1766042129735,0.7,123.26,123.24,8.11422881]
[1766042130139,0.7,123.26,123.24,8.82422881]
[1766042131248,13.50210282,123.27,123.24,8.82422881]
[1766042131841,0.1,123.27,123.25,0.71]
[1766042133246,0.1,123.27,123.25,8.82328754]
[1766042136660,0.8,123.27,123.24,8.82391018]
[1766042136833,4.60210282,123.27,123.24,8.82391018]
[1766042137353,4.60210282,123.27,123.25,8.11355811]
[1766042137354,0.1,123.27,123.25,8.11355811]
[1766042137545,0.1,123.27,123.25,8.82355811]
[1766042138129,0.8,123.27,123.25,8.82355811]
[1766042138457,0.1,123.27,123.25,8.82355811]
[1766042138665,0.1,123.27,123.25,8.11355811]
[1766042138875,0.1,123.27,123.26,0.71]
[1766042139058,9.0,123.28,123.26,0.71]
[1766042139442,9.0,123.28,123.26,8.82267439]
[1766042141157,0.1,123.28,123.27,8.82227387]
[1766042141673,1e-08,123.29,123.27,8.11227387]
[1766042141842,1e-08,123.29,123.28,0.71]
[1766042143153,1e-08,123.29,123.28,8.82161583]
[1766042144152,1e-08,123.29,123.28,0.71]
[1766042144339,0.68000001,123.29,123.27,8.81197578]
[1766042144540,12.59136383,123.32,123.29,0.7]
[1766042145052,0.68,123.32,123.29,0.7]
[1766042145770,8.78903154,123.32,123.29,0.7]
[1766042146001,0.68,123.31,123.28,32.89352642]
[1766042147153,0.68,123.3,123.28,24.08197639]
[1766042147359,0.68,123.3,123.27,8.81200774]
[1766042148072,0.68,123.3,123.28,8.81141071]
[1766042148664,17.00972039,123.31,123.28,8.11141071]
[1766042148873,9.58,123.31,123.28,8.81141071]
[1766042151015,17.68964295,123.31,123.28,8.81141071]
[1766042153565,20.80527106,123.31,123.28,8.81141071]
[1766042153765,21.48527106,123.31,123.28,8.81141071]
[1766042153974,17.68964295,123.31,123.28,8.81141071]
[1766042154180,9.58,123.31,123.28,8.81141071]
[1766042154401,8.9,123.31,123.29,0.7]
[1766042154884,9.58,123.31,123.29,0.7]
[1766042155684,8.9,123.31,123.29,0.7]
[1766042156177,9.58,123.31,123.29,0.7]
[1766042156781,8.9,123.31,123.29,0.7]
[1766042156979,8.18,123.31,123.3,0.7]
[1766042157161,9.68,123.33,123.3,0.7]
[1766042157362,9.68,123.33,123.3,8.81011359]
[1766042157776,0.68,123.32,123.3,8.11011359]
[1766042159163,0.68,123.32,123.29,8.8107532]
[1766042159476,0.1,123.33,123.31,0.7]
[1766042159778,0.1,123.33,123.3,8.1102604]
[1766042159779,0.68,123.32,123.3,20.90430041]
[1766042159976,4.47562811,123.32,123.3,20.90430041]
[1766042160176,0.68,123.31,123.29,8.1106222]
[1766042160388,0.68,123.3,123.28,10.43767296]
[1766042160560,0.68,123.3,123.27,8.11195553]
[1766042160754,0.68,123.3,123.27,8.81195553]
[1766042161258,0.68,123.3,123.27,8.11195553]
[1766042161474,0.68,123.3,123.28,0.7]
[1766042162293,17.00958982,123.32,123.28,8.81158417]
[1766042162587,3.1096155,123.31,123.28,8.81158417]
[1766042162892,0.68,123.31,123.28,0.7]
[1766042163483,8.78970015,123.31,123.28,0.7]
[1766042166187,0.68,123.3,123.28,0.7]
[1766042167605,8.10970015,123.31,123.29,0.7]
[1766042167778,8.78970015,123.31,123.29,0.7]
[1766042168276,8.78970015,123.31,123.28,8.81146712]
[1766042169301,8.78970015,123.31,123.28,0.7]
[1766042169596,0.68,123.3,123.26,8.81262878]
[1766042169899,8.79060293,123.3,123.27,0.7]
[1766042170104,0.68,123.29,123.26,8.81262878]
[1766042170474,8.11060293,123.3,123.27,0.7]
[1766042170475,8.79060293,123.3,123.27,0.7]
[1766042173000,8.79060293,123.3,123.27,8.81227343]
[1766042173596,0.66,123.3,123.27,8.11227343]
[1766042173799,8.76993081,123.31,123.28,0.65]
[1766042174679,0.66,123.3,123.28,0.65]
[1766042175180,0.66,123.3,123.27,8.11227343]
[1766042175379,0.66,123.3,123.27,8.76227343]
[1766042177578,8.77035043,123.3,123.27,8.76227343]
[1766042178408,0.66,123.3,123.27,8.76227343]
[1766042181311,0.66,123.3,123.27,8.11227343]
[1766042181493,0.66,123.31,123.28,0.65]
[1766042182912,0.66,123.3,123.28,0.65]
[1766042183107,0.66,123.3,123.27,8.11227343]
[1766042183285,0.66,123.3,123.27,8.76227343]
[1766042184398,2.4296155,123.31,123.28,0.65]
[1766042184709,0.66,123.3,123.28,0.65]
[1766042184908,20.09888961,123.32,123.28,0.65]
[1766042185284,0.1,123.33,123.28,0.65]
[1766042185486,9.56,123.32,123.3,0.65]
[1766042185686,0.66,123.32,123.3,0.65]
[1766042186701,0.66,123.32,123.29,8.7609579]
[1766042187089,2.4296155,123.31,123.27,8.11211023]
[1766042187290,0.66,123.29,123.27,8.11211023]
[1766042187492,3.0896155,123.3,123.27,8.76211023]
[1766042187708,0.66,123.31,123.27,8.11211023]
[1766042187913,0.66,123.31,123.28,0.65]
[1766042188114,0.76,123.33,123.28,2.4296155]
[1766042188290,15.13676646,123.33,123.29,0.65]
[1766042188506,9.0,123.33,123.3,0.65]
[1766042188716,9.66,123.33,123.3,0.65]
[1766042189101,0.66,123.32,123.3,0.65]
[1766042189301,9.66,123.33,123.3,0.65]
[1766042189613,0.66,123.32,123.3,8.7602853]
[1766042189810,0.66,123.32,123.29,8.76050297]
[1766042190211,0.66,123.31,123.28,19.30017323]
[1766042190525,0.66,123.31,123.28,8.76129165]
[1766042190709,3.0896155,123.31,123.27,37.20004457]
[1766042190898,0.66,123.3,123.27,8.76200871]
[1766042191503,0.66,123.29,123.26,8.76231266]
[1766042194002,0.66,123.29,123.25,28.39178837]
[1766042194003,0.66,123.26,123.23,8.76457419]
[1766042194216,3.0896155,123.26,123.23,8.76457419]
[1766042199224,0.66,123.25,123.23,8.76457419]
[1766042199921,2.4296155,123.26,123.23,8.76457419]
[1766042200226,3.0896155,123.26,123.23,8.76457419]
[1766042200802,0.66,123.26,123.23,0.65]
[1766042201601,3.0896155,123.25,123.22,8.76556565]
[1766042201893,0.66,123.24,123.21,8.76596385]
[1766042202098,2.4296155,123.25,123.2,19.24761788]
[1766042202099,3.1096155,123.23,123.2,8.80658701]
[1766042203026,0.68,123.23,123.21,0.69]
[1766042203430,0.68,123.23,123.2,8.11658701]
[1766042203595,3.1096155,123.23,123.2,8.80658701]
[1766042204712,0.68,123.22,123.19,8.80725819]
[1766042205128,0.68,123.21,123.18,8.8078859]
[1766042205327,3.1096155,123.2,123.17,8.80866328]
[1766042206404,0.68,123.19,123.17,8.80866328]
[1766042207508,3.1096155,123.2,123.17,8.80866328]
[1766042207907,3.1096155,123.2,123.15,17.70957521]
[1766042207908,0.68,123.18,123.15,17.70957521]
[1766042208323,3.1096155,123.18,123.15,8.80957521]
[1766042208905,0.68,123.2,123.16,0.69]
[1766042209230,0.68,123.19,123.16,0.69]
[1766042209818,0.68,123.19,123.16,8.80894718]
[1766042210933,0.68,123.18,123.15,0.69]
[1766042211145,0.68,123.18,123.15,8.81016431]
[1766042211443,0.68,123.17,123.15,8.12016431]
[1766042211639,3.1096155,123.18,123.15,8.81016431]
[1766042212319,2.4296155,123.19,123.16,0.69]
[1766042212634,0.68,123.18,123.15,11.23977981]
[1766042212803,0.68,123.18,123.15,8.81016431]
[1766042214840,3.1096155,123.2,123.16,0.69]
[1766042215011,2.4296155,123.2,123.17,0.69]
[1766042215210,0.68,123.19,123.16,3.1196155]
[1766042216423,0.68,123.19,123.17,8.11886011]
[1766042216828,0.68,123.21,123.18,3.1196155]
[1766042217631,0.68,123.21,123.18,3.122802]
[1766042219737,0.68,123.22,123.19,11.240344]
[1766042221525,0.68,123.22,123.19,12.60842286]
[1766042221839,0.68,123.22,123.19,8.807542]
[1766042223722,0.68,123.21,123.18,8.1180538]
[1766042223927,0.68,123.2,123.18,8.1180538]
[1766042224119,0.68,123.2,123.17,12.60941286]
[1766042224523,0.68,123.2,123.17,8.808532]
[1766042224734,0.68,123.2,123.17,12.60941286]
[1766042225137,0.68,123.2,123.18,8.11806896]
[1766042227921,0.68,123.21,123.18,8.80806896]
[1766042228127,0.68,123.22,123.2,0.69]
[1766042228335,0.68,123.23,123.21,0.69]
[1766042228717,0.68,123.23,123.2,4.52088086]
[1766042229540,0.68,123.23,123.2,12.6373198]
[1766042232614,17.01381361,123.25,123.22,0.67]
[1766042232849,0.72,123.24,123.21,4.47088086]
[1766042233027,0.72,123.24,123.21,3.80088086]
[1766042233330,8.11381361,123.25,123.23,0.67]
[1766042233331,8.9,123.25,123.23,0.67]
[1766042233533,9.62,123.25,123.23,0.67]
[1766042233931,9.62,123.25,123.22,11.91584276]
[1766042233932,0.72,123.25,123.22,12.58584276]
[1766042236431,20.81346632,123.27,123.22,12.58584276]
[1766042236432,0.72,123.28,123.25,0.67]
[1766042236630,0.72,123.28,123.25,4.47088086]
[1766042237037,8.9,123.3,123.26,4.47088086]
[1766042237237,8.9,123.3,123.27,0.67]
[1766042237238,9.62,123.3,123.27,0.67]
[1766042237418,9.62,123.3,123.27,8.78193779]
[1766042237620,0.72,123.29,123.27,8.11193779]
[1766042239137,8.9,123.3,123.27,8.11193779]
[1766042239138,9.62,123.3,123.27,12.58281865]
[1766042239841,9.62,123.3,123.28,3.80088086]
[1766042239842,8.9,123.3,123.28,3.80088086]
[1766042240140,9.62,123.3,123.27,32.86350332]
[1766042241149,8.9,123.3,123.28,0.67]
[1766042242530,8.9,123.3,123.28,8.78103652]
[1766042242954,12.80088086,123.33,123.28,32.19095696]
[1766042243129,12.80088086,123.33,123.3,0.67]
[1766042243130,9.0,123.33,123.3,0.67]
[1766042243959,9.0,123.33,123.29,4.47088086]
[1766042244930,9.0,123.33,123.29,12.58119935]